[Event "Skol-SM i Schack 2024, Grupp A"]
[Site "Arena Varberg, Kattegattsvagen 26, Varberg, Sweden"]
[Date "2024.10.11"]
[Round "1.10"]
[White "Al-Sherufi, Haider"]
[Black "Eriksson, Wilmer"]
[Result "0-1"]
[TimeControl "45 minutes + 10 seconds per move from move one."]
[WhiteFideId "1745212"]
[BlackFideId "1768298"]
[WhiteElo "1599"]
[BlackElo "1849"]

1. e4 {[%clk 00:45:14]} {[%emt 00:00:03]} c6 {[%clk 00:45:12]} {[%emt
00:00:11]} 2. d4 {[%clk 00:45:20]} {[%emt 00:00:03]} d5 {[%clk 00:45:18]}
{[%emt 00:00:04]} 3. exd5 {[%clk 00:45:26]} {[%emt 00:00:04]} cxd5 {[%clk
00:45:27]} {[%emt 00:00:02]} 4. c4 {[%clk 00:45:34]} {[%emt 00:00:02]} Nf6
{[%clk 00:45:34]} {[%emt 00:00:02]} 5. Nc3 {[%clk 00:45:42]} {[%emt 00:00:02]}
g6 {[%clk 00:45:21]} {[%emt 00:00:23]} 6. cxd5 {[%clk 00:44:37]} {[%emt
00:01:15]} Nxd5 {[%clk 00:45:24]} {[%emt 00:00:06]} 7. Qb3 {[%clk 00:44:42]}
{[%emt 00:00:05]} Nb6 {[%clk 00:45:08]} {[%emt 00:00:26]} 8. Be3 {[%clk
00:42:41]} {[%emt 00:02:12]} Bg7 {[%clk 00:43:38]} {[%emt 00:01:40]} 9. Nf3
{[%clk 00:41:29]} {[%emt 00:01:21]} O-O {[%clk 00:42:51]} {[%emt 00:00:57]} 10.
Be2 {[%clk 00:40:49]} {[%emt 00:00:51]} Nc6 {[%clk 00:40:55]} {[%emt 00:02:06]}
11. O-O {[%clk 00:35:22]} {[%emt 00:05:36]} Be6 {[%clk 00:30:44]} {[%emt
00:10:21]} 12. Qd1 {[%clk 00:33:41]} {[%emt 00:01:51]} Nd5 {[%clk 00:26:18]}
{[%emt 00:04:36]} 13. Rc1 {[%clk 00:30:16]} {[%emt 00:03:36]} Rc8 {[%clk
00:16:45]} {[%emt 00:09:43]} 14. Ng5 {[%clk 00:26:30]} {[%emt 00:03:55]} Nxe3
{[%clk 00:15:51]} {[%emt 00:01:04]} 15. fxe3 {[%clk 00:26:36]} {[%emt
00:00:04]} Bf5 {[%clk 00:11:59]} {[%emt 00:04:03]} 16. Bc4 {[%clk 00:22:53]}
{[%emt 00:03:53]} e6 {[%clk 00:10:02]} {[%emt 00:02:08]} 17. Nf3 {[%clk
00:16:28]} {[%emt 00:06:35]} Nxd4 {[%clk 00:07:05]} {[%emt 00:03:07]} 18. Nxd4
{[%clk 00:14:50]} {[%emt 00:01:49]} Bxd4 {[%clk 00:06:20]} {[%emt 00:00:54]} 19.
Qxd4 {[%clk 00:14:10]} {[%emt 00:00:50]} Qxd4 {[%clk 00:06:21]} {[%emt
00:00:09]} 20. exd4 {[%clk 00:14:18]} {[%emt 00:00:02]} Rxc4 {[%clk 00:06:29]}
{[%emt 00:00:02]} 21. d5 {[%clk 00:13:48]} {[%emt 00:00:40]} Rd8 {[%clk
00:03:19]} {[%emt 00:03:20]} 22. dxe6 {[%clk 00:13:31]} {[%emt 00:00:27]} Bxe6
{[%clk 00:03:26]} {[%emt 00:00:03]} 23. Rcd1 {[%clk 00:13:26]} {[%emt
00:00:15]} Rcd4 {[%clk 00:03:32]} {[%emt 00:00:05]} 24. Rxd4 {[%clk 00:12:57]}
{[%emt 00:00:38]} Rxd4 {[%clk 00:03:40]} {[%emt 00:00:01]} 25. Nb5 {[%clk
00:12:46]} {[%emt 00:00:22]} Rd2 {[%clk 00:03:30]} {[%emt 00:00:20]} 26. Rf2
{[%clk 00:12:54]} {[%emt 00:00:01]} Rd1+ {[%clk 00:03:37]} {[%emt 00:00:03]} 27.
Rf1 {[%clk 00:13:04]} Rxf1+ {[%clk 00:03:46]} {[%emt 00:00:02]} 0-1

[Event "Skol-SM i Schack 2024, Grupp A"]
[Site "Arena Varberg, Kattegattsvagen 26, Varberg, Sweden"]
[Date "2024.10.11"]
[Round "1.11"]
[White "Demeestere, Ewoud"]
[Black "Stanton-Andersson, Coll"]
[Result "1-0"]
[TimeControl "45 minutes + 10 seconds per move from move one."]
[WhiteFideId "1773585"]
[BlackFideId "1758837"]
[WhiteElo "1833"]
[BlackElo "1542"]

1. d4 {[%clk 00:45:17]} {[%emt 00:00:02]} d5 {[%clk 00:45:18]} {[%emt
00:00:02]} 2. c4 {[%clk 00:45:22]} {[%emt 00:00:06]} Nf6 {[%clk 00:45:07]}
{[%emt 00:00:21]} 3. cxd5 {[%clk 00:45:22]} {[%emt 00:00:09]} Qxd5 {[%clk
00:44:50]} {[%emt 00:00:27]} 4. Nc3 {[%clk 00:45:22]} {[%emt 00:00:10]} Qd8
{[%clk 00:44:36]} {[%emt 00:00:24]} 5. Nf3 {[%clk 00:44:59]} {[%emt 00:00:32]}
Bf5 {[%clk 00:44:01]} {[%emt 00:00:45]} 6. Qb3 {[%clk 00:44:44]} {[%emt
00:00:25]} b6 {[%clk 00:41:55]} {[%emt 00:02:16]} 7. e3 {[%clk 00:39:16]}
{[%emt 00:05:38]} e6 {[%clk 00:39:50]} {[%emt 00:02:16]} 8. Ne5 {[%clk
00:36:53]} {[%emt 00:02:33]} Bd6 {[%clk 00:37:12]} {[%emt 00:02:48]} 9. Bb5+
{[%clk 00:35:45]} {[%emt 00:01:17]} Nbd7 {[%clk 00:36:25]} {[%emt 00:00:57]} 10.
Bc6 {[%clk 00:33:58]} {[%emt 00:01:56]} Rb8 {[%clk 00:34:32]} {[%emt 00:02:03]}
11. e4 {[%clk 00:31:56]} {[%emt 00:02:12]} Bg6 {[%clk 00:30:00]} {[%emt
00:04:43]} 12. Bg5 {[%clk 00:31:24]} {[%emt 00:00:41]} Bxe5 {[%clk 00:20:01]}
{[%emt 00:10:10]} 13. dxe5 {[%clk 00:31:15]} {[%emt 00:00:18]} O-O {[%clk
00:20:02]} {[%emt 00:00:10]} 14. exf6 {[%clk 00:31:03]} {[%emt 00:00:21]} gxf6
{[%clk 00:19:51]} {[%emt 00:00:21]} 15. Bh6 {[%clk 00:30:46]} {[%emt 00:00:27]}
Ne5 {[%clk 00:18:38]} {[%emt 00:01:23]} 16. Bb5 {[%clk 00:28:22]} {[%emt
00:02:33]} c6 {[%clk 00:18:24]} {[%emt 00:00:25]} 17. Be2 {[%clk 00:28:02]}
{[%emt 00:00:29]} Re8 {[%clk 00:17:45]} {[%emt 00:00:49]} 18. Rd1 {[%clk
00:27:32]} {[%emt 00:00:40]} Qc7 {[%clk 00:16:48]} {[%emt 00:01:09]} 19. h4
{[%clk 00:26:54]} {[%emt 00:00:47]} Rbd8 {[%clk 00:14:54]} {[%emt 00:02:04]} 20.
O-O {[%clk 00:26:32]} {[%emt 00:00:32]} f5 {[%clk 00:12:02]} {[%emt 00:03:03]}
21. h5 {[%clk 00:26:07]} {[%emt 00:00:34]} Ng4 {[%clk 00:11:38]} {[%emt
00:00:34]} 22. Bxg4 {[%clk 00:26:07]} {[%emt 00:00:11]} fxg4 {[%clk 00:11:05]}
{[%emt 00:00:43]} 23. hxg6 {[%clk 00:26:06]} {[%emt 00:00:09]} hxg6 {[%clk
00:10:27]} {[%emt 00:00:49]} 24. Rxd8 {[%clk 00:25:36]} {[%emt 00:00:40]} Rxd8
{[%clk 00:10:30]} {[%emt 00:00:07]} 25. Rd1 {[%clk 00:25:37]} {[%emt 00:00:09]}
Re8 {[%clk 00:09:39]} {[%emt 00:01:01]} 26. Ne2 {[%clk 00:24:56]} {[%emt
00:00:49]} Qe5 {[%clk 00:08:36]} {[%emt 00:01:16]} 27. Qc3 {[%clk 00:24:37]}
{[%emt 00:00:27]} Qxc3 {[%clk 00:07:20]} {[%emt 00:01:28]} 28. Nxc3 {[%clk
00:24:41]} {[%emt 00:00:06]} Re7 {[%clk 00:07:12]} {[%emt 00:00:17]} 29. Bg5
{[%clk 00:24:33]} {[%emt 00:00:17]} Rc7 {[%clk 00:06:49]} {[%emt 00:00:35]} 30.
Bf6 {[%clk 00:24:35]} {[%emt 00:00:08]} Kh7 {[%clk 00:06:14]} {[%emt 00:00:45]}
31. Rd8 {[%clk 00:24:23]} {[%emt 00:00:21]} g5 {[%clk 00:06:13]} {[%emt
00:00:11]} 32. Bxg5 {[%clk 00:24:15]} {[%emt 00:00:18]} 1-0

[Event "Skol-SM i Schack 2024, Grupp A"]
[Site "Arena Varberg, Kattegattsvagen 26, Varberg, Sweden"]
[Date "2024.10.11"]
[Round "1.12"]
[White "Fredlund, Joel"]
[Black "Keskitalo, Rasmus"]
[Result "0-1"]
[TimeControl "45 minutes + 10 seconds per move from move one."]
[WhiteFideId "1748157"]
[BlackFideId "1768271"]
[WhiteElo "1454"]
[BlackElo "1752"]

1. e4 {[%clk 00:45:09]} {[%emt 00:00:09]} c6 {[%clk 00:45:19]} {[%emt
00:00:02]} 2. d4 {[%clk 00:45:03]} {[%emt 00:00:16]} d5 {[%clk 00:45:28]}
{[%emt 00:00:02]} 3. e5 {[%clk 00:44:47]} {[%emt 00:00:26]} c5 {[%clk
00:45:36]} 4. dxc5 {[%clk 00:43:51]} {[%emt 00:01:06]} Nc6 {[%clk 00:45:45]}
{[%emt 00:00:01]} 5. Nf3 {[%clk 00:42:38]} {[%emt 00:01:24]} Bg4 {[%clk
00:45:46]} {[%emt 00:00:08]} 6. Bb5 {[%clk 00:41:53]} {[%emt 00:00:55]} e6
{[%clk 00:45:54]} {[%emt 00:00:02]} 7. Be3 {[%clk 00:40:47]} {[%emt 00:01:17]}
Nge7 {[%clk 00:45:27]} {[%emt 00:00:37]} 8. Nbd2 {[%clk 00:39:23]} {[%emt
00:01:34]} a6 {[%clk 00:44:04]} {[%emt 00:01:33]} 9. Ba4 {[%clk 00:39:23]}
{[%emt 00:00:09]} Nf5 {[%clk 00:43:34]} {[%emt 00:00:41]} 10. Nb3 {[%clk
00:35:39]} {[%emt 00:03:54]} Nxe3 {[%clk 00:41:07]} {[%emt 00:02:36]} 11. fxe3
{[%clk 00:35:30]} {[%emt 00:00:18]} Bxf3 {[%clk 00:40:55]} {[%emt 00:00:23]} 12.
Qxf3 {[%clk 00:35:04]} {[%emt 00:00:35]} Qh4+ {[%clk 00:41:03]} {[%emt
00:00:03]} 13. Qf2 {[%clk 00:25:00]} {[%emt 00:10:14]} Qxa4 {[%clk 00:41:08]}
{[%emt 00:00:06]} 14. Nd4 {[%clk 00:23:10]} {[%emt 00:01:59]} Bxc5 {[%clk
00:40:30]} {[%emt 00:00:48]} 0-1

[Event "Skol-SM i Schack 2024, Grupp A"]
[Site "Arena Varberg, Kattegattsvagen 26, Varberg, Sweden"]
[Date "2024.10.11"]
[Round "2.1"]
[White "Eriksson, Wilmer"]
[Black "Frank, Anton"]
[Result "1-0"]
[TimeControl "45 minutes + 10 seconds per move from move one."]
[BlackTitle "CM"]
[WhiteFideId "1768298"]
[BlackFideId "1752383"]
[WhiteElo "1849"]
[BlackElo "2110"]

1. e4 {[%clk 00:45:18]} {[%emt 00:00:02]} e5 {[%clk 00:45:01]} {[%emt
00:00:18]} 2. Nf3 {[%clk 00:45:17]} {[%emt 00:00:11]} Nc6 {[%clk 00:45:09]}
{[%emt 00:00:03]} 3. Bb5 {[%clk 00:45:24]} {[%emt 00:00:03]} Nge7 {[%clk
00:45:02]} {[%emt 00:00:17]} 4. O-O {[%clk 00:44:04]} {[%emt 00:01:30]} g6
{[%clk 00:44:23]} {[%emt 00:00:49]} 5. c3 {[%clk 00:42:41]} {[%emt 00:01:32]}
Bg7 {[%clk 00:43:33]} {[%emt 00:01:01]} 6. d4 {[%clk 00:42:05]} {[%emt
00:00:46]} a6 {[%clk 00:43:32]} {[%emt 00:00:11]} 7. Ba4 {[%clk 00:41:37]}
{[%emt 00:00:38]} exd4 {[%clk 00:43:28]} {[%emt 00:00:14]} 8. cxd4 {[%clk
00:41:36]} {[%emt 00:00:11]} b5 {[%clk 00:43:35]} {[%emt 00:00:02]} 9. Bc2
{[%clk 00:40:18]} {[%emt 00:01:29]} d5 {[%clk 00:40:49]} {[%emt 00:02:55]} 10.
e5 {[%clk 00:35:07]} {[%emt 00:05:21]} Bg4 {[%clk 00:39:14]} {[%emt 00:01:45]}
11. Be3 {[%clk 00:35:03]} {[%emt 00:00:15]} Nf5 {[%clk 00:38:37]} {[%emt
00:00:47]} 12. Bxf5 {[%clk 00:31:42]} {[%emt 00:03:31]} Bxf5 {[%clk 00:38:42]}
{[%emt 00:00:05]} 13. Nc3 {[%clk 00:26:27]} {[%emt 00:05:25]} O-O {[%clk
00:34:55]} {[%emt 00:03:56]} 14. Rc1 {[%clk 00:23:18]} {[%emt 00:03:19]} Ne7
{[%clk 00:33:09]} {[%emt 00:01:56]} 15. Bg5 {[%clk 00:20:21]} {[%emt 00:03:07]}
c6 {[%clk 00:30:27]} {[%emt 00:02:52]} 16. Ne2 {[%clk 00:17:53]} {[%emt
00:02:38]} Rc8 {[%clk 00:28:17]} {[%emt 00:02:21]} 17. Ng3 {[%clk 00:17:13]}
{[%emt 00:00:49]} Bd7 {[%clk 00:25:32]} {[%emt 00:02:56]} 18. Qd2 {[%clk
00:15:10]} {[%emt 00:02:13]} Qe8 {[%clk 00:24:33]} {[%emt 00:01:09]} 19. h4
{[%clk 00:12:54]} {[%emt 00:02:26]} Nf5 {[%clk 00:23:26]} {[%emt 00:01:17]} 20.
Nxf5 {[%clk 00:12:31]} {[%emt 00:00:32]} Bxf5 {[%emt 00:00:03]} 21. Rfe1 {[%clk
00:11:58]} {[%emt 00:00:41]} Bg4 {[%clk 00:22:12]} {[%emt 00:01:33]} 22. Qf4
{[%clk 00:10:09]} {[%emt 00:01:59]} Qe6 {[%clk 00:22:04]} {[%emt 00:00:18]} 23.
Nh2 {[%clk 00:08:46]} {[%emt 00:01:33]} h5 {[%clk 00:19:25]} {[%emt 00:02:49]}
24. Nxg4 {[%clk 00:08:31]} {[%emt 00:00:26]} Qxg4 {[%clk 00:18:07]} {[%emt
00:01:27]} 25. Qxg4 {[%clk 00:08:20]} {[%emt 00:00:21]} hxg4 {[%clk 00:18:16]}
{[%emt 00:00:02]} 26. Kh2 {[%clk 00:07:25]} {[%emt 00:01:05]} Rfe8 {[%clk
00:17:05]} {[%emt 00:01:21]} 27. Kg3 {[%clk 00:05:55]} {[%emt 00:01:39]} c5
{[%clk 00:16:53]} {[%emt 00:00:22]} 28. dxc5 {[%clk 00:04:06]} {[%emt
00:02:00]} Bxe5+ {[%clk 00:15:23]} {[%emt 00:01:40]} 29. Kxg4 {[%clk 00:04:04]}
{[%emt 00:00:11]} Bxb2 {[%clk 00:15:12]} {[%emt 00:00:22]} 30. Rxe8+ {[%clk
00:03:53]} {[%emt 00:00:21]} Rxe8 {[%clk 00:15:21]} {[%emt 00:00:01]} 31. Rc2
{[%clk 00:02:39]} {[%emt 00:01:24]} Re4+ {[%clk 00:08:16]} {[%emt 00:07:15]} 32.
Kf3 {[%clk 00:02:35]} {[%emt 00:00:14]} Be5 {[%clk 00:08:24]} {[%emt 00:00:01]}
33. c6 {[%clk 00:02:17]} {[%emt 00:00:29]} Bc7 {[%clk 00:08:31]} {[%emt
00:00:02]} 34. g3 {[%clk 00:01:35]} {[%emt 00:00:52]} Kf8 {[%clk 00:07:23]}
{[%emt 00:01:19]} 35. Bf4 {[%clk 00:01:08]} {[%emt 00:00:37]} Re7 {[%clk
00:07:31]} {[%emt 00:00:01]} 36. Rc5 {[%clk 00:00:38]} {[%emt 00:00:41]} d4
{[%clk 00:06:35]} {[%emt 00:01:06]} 37. Rd5 {[%clk 00:00:22]} {[%emt 00:00:26]}
Bxf4 {[%clk 00:04:25]} {[%emt 00:02:20]} 38. Kxf4 {[%clk 00:00:31]} {[%emt
00:00:01]} Rc7 {[%clk 00:04:29]} {[%emt 00:00:06]} 39. Rc5 {[%clk 00:00:32]}
{[%emt 00:00:09]} Ke7 {[%clk 00:03:52]} {[%emt 00:00:46]} 40. Ke4 {[%clk
00:00:39]} {[%emt 00:00:03]} Kd6 {[%clk 00:03:54]} {[%emt 00:00:09]} 41. Kxd4
{[%clk 00:00:43]} {[%emt 00:00:06]} f5 {[%clk 00:00:49]} {[%emt 00:03:16]} 42.
f3 {[%clk 00:00:51]} {[%emt 00:00:01]} Ke6 {[%clk 00:00:47]} {[%emt 00:00:12]}
43. g4 {[%clk 00:00:39]} {[%emt 00:00:22]} fxg4 {[%clk 00:00:48]} {[%emt
00:00:10]} 44. fxg4 {[%clk 00:00:48]} {[%emt 00:00:01]} Kd6 {[%clk 00:00:45]}
{[%emt 00:00:12]} 45. Rg5 {[%clk 00:00:17]} {[%emt 00:00:41]} Kxc6 {[%emt
00:00:17]} 46. Rxg6+ {[%clk 00:00:20]} {[%emt 00:00:06]} Kb7 {[%clk 00:00:46]}
{[%emt 00:00:03]} 47. h5 {[%clk 00:00:21]} {[%emt 00:00:08]} Rc4+ {[%clk
00:00:44]} {[%emt 00:00:12]} 48. Kd3 {[%clk 00:00:24]} {[%emt 00:00:08]} Rc1
{[%clk 00:00:24]} {[%emt 00:00:31]} 49. h6 {[%clk 00:00:31]} {[%emt 00:00:02]}
Rh1 {[%clk 00:00:32]} 50. Rg7+ {[%clk 00:00:34]} {[%emt 00:00:08]} Kb6 {[%clk
00:00:42]} 51. h7 {[%clk 00:00:43]} a5 {[%clk 00:00:24]} {[%emt 00:00:29]} 52.
g5 {[%clk 00:00:39]} {[%emt 00:00:13]} a4 {[%clk 00:00:24]} {[%emt 00:00:10]}
53. Rg6+ {[%clk 00:00:38]} {[%emt 00:00:11]} Kc5 {[%clk 00:00:26]} {[%emt
00:00:07]} 54. Rh6 {[%clk 00:00:47]} {[%emt 00:00:02]} Rd1+ {[%clk 00:00:35]}
{[%emt 00:00:01]} 55. Kc2 {[%clk 00:00:53]} {[%emt 00:00:04]} Rd5 {[%clk
00:00:15]} {[%emt 00:00:29]} 56. g6 {[%clk 00:00:22]} {[%emt 00:00:41]} Kb4
{[%clk 00:00:14]} {[%emt 00:00:12]} 57. h8=Q {[%clk 00:00:25]} {[%emt
00:00:07]} Rc5+ {[%clk 00:00:23]} {[%emt 00:00:01]} 58. Kb1 {[%clk 00:00:21]}
{[%emt 00:00:14]} a3 {[%clk 00:00:29]} {[%emt 00:00:04]} 59. Qd4+ {[%clk
00:00:29]} {[%emt 00:00:02]} Rc4 {[%clk 00:00:38]} {[%emt 00:00:01]} 60. Qxc4+
{[%clk 00:00:33]} {[%emt 00:00:06]} bxc4 {[%clk 00:00:47]} {[%emt 00:00:02]} 61.
g7 {[%clk 00:00:39]} {[%emt 00:00:03]} 1-0

[Event "Skol-SM i Schack 2024, Grupp A"]
[Site "Arena Varberg, Kattegattsvagen 26, Varberg, Sweden"]
[Date "2024.10.11"]
[Round "2.2"]
[White "Joensson, Oscar"]
[Black "Wedenberg, Oliver"]
[Result "1-0"]
[TimeControl "45 minutes + 10 seconds per move from move one."]
[WhiteFideId "1729977"]
[BlackFideId "1767909"]
[WhiteElo "1955"]
[BlackElo "1858"]

1. d4 {[%clk 00:45:18]} {[%emt 00:00:02]} d5 {[%clk 00:45:18]} {[%emt
00:00:02]} 2. c4 {[%clk 00:45:27]} {[%emt 00:00:01]} e6 {[%clk 00:45:25]}
{[%emt 00:00:03]} 3. Nf3 {[%clk 00:45:35]} {[%emt 00:00:01]} Nf6 {[%clk
00:45:32]} {[%emt 00:00:03]} 4. g3 {[%clk 00:45:43]} {[%emt 00:00:02]} Be7
{[%clk 00:45:34]} {[%emt 00:00:09]} 5. Bg2 {[%clk 00:45:51]} {[%emt 00:00:02]}
O-O {[%clk 00:45:40]} {[%emt 00:00:03]} 6. O-O {[%clk 00:45:58]} {[%emt
00:00:03]} dxc4 {[%clk 00:45:47]} {[%emt 00:00:04]} 7. Qc2 {[%clk 00:46:06]}
{[%emt 00:00:01]} b5 {[%clk 00:45:28]} {[%emt 00:00:29]} 8. a4 {[%clk
00:43:55]} {[%emt 00:02:21]} b4 {[%clk 00:44:25]} {[%emt 00:01:14]} 9. Ne5
{[%clk 00:40:57]} {[%emt 00:03:08]} Nd5 {[%clk 00:39:26]} {[%emt 00:05:08]} 10.
Nxc4 {[%clk 00:40:09]} {[%emt 00:00:57]} c5 {[%clk 00:38:51]} {[%emt 00:00:46]}
11. dxc5 {[%clk 00:37:30]} {[%emt 00:02:50]} Bxc5 {[%clk 00:33:38]} {[%emt
00:05:23]} 12. Rd1 {[%clk 00:37:11]} {[%emt 00:00:28]} Qe7 {[%clk 00:32:38]}
{[%emt 00:01:11]} 13. Nbd2 {[%clk 00:35:47]} {[%emt 00:01:34]} Nc6 {[%clk
00:29:29]} {[%emt 00:03:18]} 14. Nb3 {[%clk 00:35:05]} {[%emt 00:00:52]} Bb7
{[%clk 00:25:36]} {[%emt 00:04:04]} 15. a5 {[%clk 00:28:09]} {[%emt 00:07:05]}
a6 {[%clk 00:21:58]} {[%emt 00:03:49]} 16. e4 {[%clk 00:26:03]} {[%emt
00:02:15]} Nc7 {[%clk 00:20:28]} {[%emt 00:01:40]} 17. Nxc5 {[%clk 00:26:07]}
{[%emt 00:00:06]} Qxc5 {[%clk 00:20:36]} {[%emt 00:00:02]} 18. Be3 {[%clk
00:26:15]} {[%emt 00:00:02]} Qe7 {[%clk 00:20:22]} {[%emt 00:00:23]} 19. Nb6
{[%clk 00:26:13]} {[%emt 00:00:13]} Rad8 {[%clk 00:16:02]} {[%emt 00:04:31]} 20.
Bc5 {[%clk 00:25:48]} {[%emt 00:00:34]} b3 {[%clk 00:15:24]} {[%emt 00:00:48]}
21. Qc4 {[%clk 00:22:44]} {[%emt 00:03:14]} Rxd1+ {[%clk 00:11:35]} {[%emt
00:03:59]} 22. Rxd1 {[%clk 00:22:52]} {[%emt 00:00:03]} Rd8 {[%clk 00:09:17]}
{[%emt 00:02:28]} 23. Bxe7 {[%clk 00:22:39]} {[%emt 00:00:22]} Rxd1+ {[%clk
00:09:26]} {[%emt 00:00:02]} 24. Bf1 {[%clk 00:22:48]} {[%emt 00:00:01]} Ne5
{[%clk 00:09:09]} {[%emt 00:00:27]} 25. Qxc7 {[%clk 00:22:00]} {[%emt
00:00:57]} Nf3+ {[%clk 00:09:17]} {[%emt 00:00:02]} 26. Kg2 {[%clk 00:22:09]}
Ne1+ {[%clk 00:08:32]} {[%emt 00:00:56]} 27. Kh3 {[%clk 00:22:17]} {[%emt
00:00:01]} 1-0